fUSD/lending_fUSD_20250930
["ID","MTS","AMOUNT","RATE_DAILY","PERIOD"]
[388529633,1759234267310,-2846.88,0.00019452,2]
[388529634,1759234267319,-1071.05,0.00019452,2]
[388529635,1759234267329,-640.07,0.00019452,2]
[388529636,1759234267339,-500.0,0.00019452,2]
[388529637,1759234267350,-500.0,0.00019452,2]
[388529638,1759234267360,-150.0,0.00019452,2]
[388529639,1759234267370,-500.0,0.00019452,2]
[388529640,1759234267380,-150.0,0.00019452,2]
[388529641,1759234267391,-500.0,0.00019452,2]
[388529642,1759234267401,-216.49252146,0.00019452,2]
[388529643,1759234267412,-1567.07,0.00019452,2]
[388529644,1759234267422,-1414.35,0.00019452,2]
[388529645,1759234267432,-739.36,0.00019452,2]
[388529646,1759234267443,-1900.19,0.00019452,2]
[388529647,1759234267452,-500.0,0.00019452,2]
[388529648,1759234267465,-152.75692236,0.00019452,2]
[388529649,1759234267475,-500.0,0.00019452,2]
[388529650,1759234267487,-150.0,0.00019452,2]
[388529651,1759234267497,-1949.03,0.00019452,2]
[388529652,1759234267508,-500.0,0.00019452,2]
[388529653,1759234267518,-500.0,0.00019452,2]
[388529654,1759234267529,-500.0,0.00019452,2]
[388529655,1759234267540,-150.0,0.00019452,2]
[388529656,1759234267551,-356.55556513,0.00019452,2]
[388529657,1759234267562,-500.0,0.00019452,2]
[388529658,1759234267572,-500.0,0.00019452,2]
[388529659,1759234267583,-500.0,0.00019452,2]
[388529660,1759234267595,-874.35,0.00019452,2]
[388529661,1759234267607,-500.0,0.00019452,2]
[388529662,1759234267619,-174.33644408,0.00019452,2]
[388529663,1759234267630,-500.0,0.00019452,2]
[388529664,1759234267640,-500.0,0.00019452,2]
[388529665,1759234267651,-500.0,0.00019452,2]
[388529666,1759234267661,-500.0,0.00019452,2]
[388529667,1759234267673,-541.65,0.00019452,2]
[388529668,1759234267685,-500.0,0.00019452,2]
[388529669,1759234267696,-500.0,0.00019452,2]
[388529670,1759234267708,-1437.05,0.00019452,2]
[388529671,1759234267718,-655.06,0.00019452,2]
[388529672,1759234267730,-500.0,0.00019452,2]
[388529673,1759234267741,-834.84,0.00019452,2]
[388529674,1759234267752,-2398.97,0.00019452,2]
[388529675,1759234267762,-500.0,0.00019452,2]
[388529676,1759234267772,-846.26,0.00019452,2]
[388529677,1759234267783,-713.59,0.00019452,2]
[388529678,1759234267794,-500.0,0.00019452,2]
[388529679,1759234267804,-500.0,0.00019452,2]
[388529680,1759234267818,-500.0,0.00019452,2]
[388529681,1759234267830,-500.0,0.00019452,2]
[388529682,1759234267842,-500.0,0.00019452,2]
[388529683,1759234267853,-500.0,0.00019452,2]
[388529684,1759234267863,-500.0,0.00019452,2]
[388529685,1759234267875,-500.0,0.00019452,2]
[388529686,1759234267886,-2724.08,0.00019452,2]
[388529687,1759234267896,-312.48414915,0.00019452,2]
[388529688,1759234267906,-500.0,0.00019452,2]
[388529689,1759234267915,-663.95,0.00019452,2]
[388529690,1759234267926,-624.9,0.00019452,2]
[388529691,1759234267936,-704.45,0.00019452,2]
[388529692,1759234267947,-500.0,0.00019452,2]
[388529693,1759234267958,-500.0,0.00019452,2]
[388529694,1759234267968,-500.0,0.00019452,2]
[388529695,1759234267979,-500.0,0.00019452,2]
[388529696,1759234267990,-1074.07,0.00019452,2]
[388529697,1759234268001,-500.0,0.00019452,2]
[388529698,1759234268011,-500.0,0.00019452,2]
[388529699,1759234268021,-500.0,0.00019452,2]
[388529700,1759234268032,-945.44,0.00019452,2]
[388529701,1759234268043,-1949.81,0.00019452,2]
[388529702,1759234268054,-500.0,0.00019452,2]
[388529703,1759234268064,-1612.68,0.00019452,2]
[388529704,1759234268074,-500.0,0.00019452,2]
[388529705,1759234268084,-500.0,0.00019452,2]
[388529706,1759234268095,-500.0,0.00019452,2]
[388529707,1759234268106,-500.0,0.00019452,2]
[388529708,1759234268117,-500.0,0.00019452,2]
[388529709,1759234268128,-726.21,0.00019452,2]
[388529710,1759234268139,-500.0,0.00019452,2]
[388529711,1759234268149,-500.0,0.00019452,2]
[388529712,1759234268160,-500.0,0.00019452,2]
[388529713,1759234268172,-1340.8,0.00019452,2]
[388529714,1759234268182,-500.0,0.00019452,2]
[388529715,1759234268194,-500.0,0.00019452,2]
[388529716,1759234268206,-500.0,0.00019452,2]
[388529717,1759234268216,-500.0,0.00019452,2]
[388529718,1759234268227,-500.0,0.00019452,2]
[388529719,1759234268237,-500.0,0.00019452,2]
[388529720,1759234268247,-500.0,0.00019452,2]
[388529721,1759234268257,-898.56,0.00019452,2]
[388529722,1759234268267,-526.47,0.00019452,2]
[388529723,1759234268278,-3186.12,0.00019452,2]
[388529724,1759234268288,-500.0,0.00019452,2]
[388529725,1759234268304,-500.0,0.00019452,2]
[388529726,1759234268314,-2184.32,0.00019452,2]
[388529727,1759234268324,-870.03,0.00019452,2]
[388529728,1759234268335,-2298.27,0.00019452,2]
[388529729,1759234268348,-427.68165922,0.00019452,2]
[388529730,1759234268358,-361.66920961,0.00019452,2]
[388529731,1759234268371,-500.0,0.00019452,2]
[388529732,1759234268382,-500.0,0.00019452,2]
[388529733,1759234268392,-500.0,0.00019452,2]
[388529734,1759234268404,-1014.56,0.00019452,2]
[388529735,1759234268415,-500.0,0.00019452,2]
[388529736,1759234268425,-843.97,0.00019452,2]
[388529737,1759234268436,-1879.37,0.00019452,2]
[388529738,1759234268447,-500.0,0.00019452,2]
[388529739,1759234268457,-500.0,0.00019452,2]
[388529740,1759234268467,-1340.22,0.00019452,2]
[388529741,1759234268479,-500.0,0.00019452,2]
[388529742,1759234268490,-1147.97,0.00019452,2]
[388529743,1759234268501,-710.39,0.00019452,2]
[388529744,1759234268511,-500.0,0.00019452,2]
[388529745,1759234268521,-1100.76,0.00019452,2]
[388529746,1759234268532,-500.0,0.00019452,2]
[388529747,1759234268542,-500.0,0.00019452,2]
[388529748,1759234268552,-500.0,0.00019452,2]
[388529749,1759234268563,-500.0,0.00019452,2]
[388529750,1759234268573,-500.0,0.00019452,2]
[388529751,1759234268583,-500.0,0.00019452,2]
[388529752,1759234268594,-500.0,0.00019452,2]
[388529753,1759234268604,-989.47,0.00019452,2]
[388529754,1759234268614,-500.0,0.00019452,2]
[388529755,1759234268624,-500.0,0.00019452,2]
[388529756,1759234268634,-500.0,0.00019452,2]
[388529757,1759234268644,-554.65,0.00019452,2]
[388529758,1759234268655,-500.0,0.00019452,2]
[388529759,1759234268665,-500.0,0.00019452,2]
[388529760,1759234268676,-1696.34,0.00019452,2]
[388529761,1759234268687,-550.71,0.00019452,2]
[388529762,1759234268697,-1300.2,0.00019452,2]
[388529763,1759234268707,-500.0,0.00019452,2]
[388529764,1759234268718,-500.0,0.00019452,2]
[388529765,1759234268728,-511.53,0.00019452,2]
[388529766,1759234268739,-500.0,0.00019452,2]
[388529767,1759234268749,-672.26,0.00019452,2]
[388529768,1759234268760,-3545.03,0.00019452,2]
[388529769,1759234268770,-500.0,0.00019452,2]
[388529770,1759234268781,-1657.66,0.00019452,2]
[388529771,1759234268793,-500.0,0.00019452,2]
[388529772,1759234268803,-500.0,0.00019452,2]
[388529773,1759234268813,-634.91,0.00019452,2]
[388529774,1759234268823,-500.0,0.00019452,2]
[388529775,1759234268833,-574.53,0.00019452,2]
[388529776,1759234268843,-500.19,0.00019452,2]
[388529777,1759234268854,-939.84,0.00019452,2]
[388529778,1759234268864,-1913.9,0.00019452,2]
[388529779,1759234268875,-500.0,0.00019452,2]
[388529780,1759234268885,-500.0,0.00019452,2]
[388529781,1759234268897,-1814.33,0.00019452,2]
[388529782,1759234268907,-500.0,0.00019452,2]
[388529783,1759234268921,-500.0,0.00019452,2]
[388529784,1759234268931,-625.28,0.00019452,2]
[388529785,1759234268941,-1543.53,0.00019452,2]
[388529786,1759234268951,-1015.78,0.00019452,2]
[388529787,1759234268963,-500.0,0.00019452,2]
[388529788,1759234268973,-500.0,0.00019452,2]
[388529789,1759234268985,-500.0,0.00019452,2]
[388529790,1759234268996,-500.0,0.00019452,2]
[388529791,1759234269007,-2013.49,0.00019452,2]
[388529792,1759234269018,-546.12,0.00019452,2]
[388529793,1759234269029,-980.1,0.00019452,2]
[388529794,1759234269039,-500.0,0.00019452,2]
[388529795,1759234269050,-500.0,0.00019452,2]
[388529796,1759234269061,-2201.44,0.00019452,2]
[388529797,1759234269072,-500.0,0.00019452,2]
[388529798,1759234269083,-151.0,0.00019452,2]
[388529799,1759234269096,-597.83,0.00019452,2]
[388529800,1759234269106,-2271.85,0.00019452,2]
[388529801,1759234269116,-924.04,0.00019452,2]
[388529802,1759234269127,-891.82,0.00019452,2]
[388529803,1759234269137,-3533.96,0.00019452,2]
[388529804,1759234269147,-1555.15,0.00019452,2]
[388529805,1759234269158,-500.0,0.00019452,2]
[388529806,1759234269169,-500.0,0.00019452,2]
[388529807,1759234269180,-500.0,0.00019452,2]
[388529808,1759234269191,-500.0,0.00019452,2]
[388529809,1759234269203,-432.78182305,0.00019452,2]
[388529810,1759234269214,-500.0,0.00019452,2]
[388529811,1759234269225,-2474.02,0.00019452,2]
[388529812,1759234269235,-500.0,0.00019452,2]
[388529813,1759234269246,-1515.55,0.00019452,2]
[388529814,1759234269256,-500.0,0.00019452,2]
[388529815,1759234269268,-500.0,0.00019452,2]
[388529816,1759234269278,-1095.45,0.00019452,2]
[388529817,1759234269288,-500.0,0.00019452,2]
[388529818,1759234269303,-500.0,0.00019452,2]
[388529819,1759234269314,-500.0,0.00019452,2]
[388529820,1759234269324,-546.47,0.00019452,2]
[388529821,1759234269334,-500.0,0.00019452,2]
[388529822,1759234269345,-500.0,0.00019452,2]
[388529823,1759234269356,-5288.53,0.00019452,2]
[388529824,1759234269367,-500.0,0.00019452,2]
[388529825,1759234269378,-2735.87,0.00019452,2]
[388529826,1759234269388,-500.0,0.00019452,2]
[388529827,1759234269399,-500.0,0.00019452,2]
[388529828,1759234269409,-500.0,0.00019452,2]
[388529829,1759234269419,-2111.82,0.00019452,2]
[388529830,1759234269430,-677.73,0.00019452,2]
[388529831,1759234269440,-500.0,0.00019452,2]
[388529832,1759234269450,-500.0,0.00019452,2]
[388529833,1759234269461,-637.04,0.00019452,2]
[388529834,1759234269471,-500.0,0.00019452,2]
[388529835,1759234269481,-1367.04,0.00019452,2]
[388529836,1759234269492,-500.0,0.00019452,2]
[388529837,1759234269502,-500.0,0.00019452,2]
[388529838,1759234269512,-500.0,0.00019452,2]
[388529839,1759234269523,-1632.27,0.00019452,2]
[388529840,1759234269533,-152.10110598,0.00019452,2]
[388529841,1759234269543,-500.0,0.00019452,2]
[388529842,1759234269553,-500.0,0.00019452,2]
[388529843,1759234269563,-757.87,0.00019452,2]
[388529844,1759234269574,-500.0,0.00019452,2]
[388529845,1759234269585,-500.0,0.00019452,2]
[388529846,1759234269595,-654.87,0.00019452,2]
[388529847,1759234269606,-500.0,0.00019452,2]
[388529848,1759234269617,-500.0,0.00019452,2]
[388529849,1759234269628,-576.35,0.00019452,2]
[388529850,1759234269639,-2960.68,0.00019452,2]
[388529851,1759234269650,-500.0,0.00019452,2]
[388529852,1759234269662,-500.0,0.00019452,2]
[388529853,1759234269673,-1310.32,0.00019452,2]
[388529854,1759234269685,-1562.61,0.00019452,2]
[388529855,1759234269695,-500.0,0.00019452,2]
[388529856,1759234269705,-868.15,0.00019452,2]
[388529857,1759234269718,-500.0,0.00019452,2]
[388529858,1759234269729,-500.0,0.00019452,2]
[388529859,1759234269740,-926.15,0.00019452,2]
[388529860,1759234269750,-1280.05,0.00019452,2]
[388529861,1759234269761,-500.0,0.00019452,2]
[388529862,1759234269771,-2601.97,0.00019452,2]
[388529863,1759234269782,-500.0,0.00019452,2]
[388529864,1759234269792,-500.0,0.00019452,2]
[388529865,1759234269803,-2100.57,0.00019452,2]
[388529866,1759234269813,-500.0,0.00019452,2]
[388529867,1759234269823,-575.5,0.00019452,2]
[388529868,1759234269833,-500.0,0.00019452,2]
[388529869,1759234269843,-500.0,0.00019452,2]
[388529870,1759234269857,-500.0,0.00019452,2]
[388529871,1759234269867,-1858.45,0.00019452,2]
[388529872,1759234269879,-491.93667199,0.00019452,2]
[388529873,1759234269891,-500.0,0.00019452,2]
[388529874,1759234269903,-500.0,0.00019452,2]
[388529875,1759234269919,-6227.2,0.00019452,2]
[388529876,1759234269930,-500.0,0.00019452,2]
[388529877,1759234269940,-500.0,0.00019452,2]
[388529878,1759234269951,-425.29,0.00019452,2]
[388529879,1759234269962,-1269.81,0.00019452,2]
[388529880,1759234269973,-784.82,0.00019452,2]
[388529881,1759234269984,-500.0,0.00019452,2]
[388529882,1759234269995,-500.0,0.00019452,2]
[388529883,1759234270006,-1098.39,0.00019452,2]
[388529884,1759234270017,-500.0,0.00019452,2]
[388529885,1759234270028,-500.0,0.00019452,2]
[388529886,1759234270039,-4738.7,0.00019452,2]
[388529887,1759234270050,-538.52,0.00019452,2]
[388529888,1759234270061,-500.0,0.00019452,2]
[388529889,1759234270072,-500.0,0.00019452,2]
[388529890,1759234270082,-500.0,0.00019452,2]
[388529891,1759234270255,-1790.14,0.00019452,2]
[388529892,1759234270266,-1093.65,0.00019452,2]
[388529893,1759234270278,-500.0,0.00019452,2]
[388529894,1759234270290,-500.0,0.00019452,2]
[388529895,1759234270303,-4216.32,0.00019452,2]
[388529896,1759234270314,-534.22384938,0.00019452,2]
[388529897,1759234270327,-4743.31,0.00019452,2]
[388529898,1759234270338,-500.0,0.00019452,2]
[388529899,1759234270350,-500.0,0.00019452,2]
[388529900,1759234270361,-500.0,0.00019452,2]
[388529901,1759234270373,-500.0,0.00019452,2]
[388529902,1759234270384,-831.87,0.00019452,2]
[388529903,1759234270396,-606.0,0.00019452,2]
[388529904,1759234270408,-500.0,0.00019452,2]
[388529905,1759234270418,-610.04,0.00019452,2]
[388529906,1759234270430,-4457.04,0.00019452,2]
[388529907,1759234270442,-500.0,0.00019452,2]
[388529908,1759234270452,-500.0,0.00019452,2]
[388529909,1759234270464,-5041.45,0.00019452,2]
[388529910,1759234270475,-4573.92,0.00019452,2]
[388529911,1759234270486,-500.0,0.00019452,2]
[388529912,1759234270498,-500.0,0.00019452,2]
[388529913,1759234270510,-500.0,0.00019452,2]
[388529914,1759234270521,-3608.29,0.00019452,2]
[388529915,1759234270533,-814.54,0.00019452,2]
[388529916,1759234270544,-500.0,0.00019452,2]
[388529917,1759234270559,-500.0,0.00019452,2]
[388529918,1759234270570,-1505.04,0.00019452,2]
[388529919,1759234270583,-500.0,0.00019452,2]
[388529920,1759234270600,-1121.97,0.00019452,2]
[388529921,1759234270611,-2765.96,0.00019452,2]
[388529922,1759234270623,-900.72,0.00019452,2]
[388529923,1759234270634,-500.0,0.00019452,2]
[388529924,1759234270646,-1897.4,0.00019452,2]
[388529925,1759234270657,-500.0,0.00019452,2]
[388529926,1759234270668,-500.0,0.00019452,2]
[388529927,1759234270679,-500.0,0.00019452,2]
[388529928,1759234270691,-2698.02,0.00019452,2]
[388529929,1759234270701,-673.45,0.00019452,2]
[388529930,1759234270712,-500.0,0.00019452,2]
[388529931,1759234270722,-500.0,0.00019452,2]
[388529932,1759234270732,-2893.89,0.00019452,2]
[388529933,1759234270744,-1825.23,0.00019452,2]
[388529934,1759234270755,-500.0,0.00019452,2]
[388529935,1759234270767,-545.75156802,0.00019452,2]
[388529936,1759234270777,-500.0,0.00019452,2]
[388529937,1759234270789,-500.0,0.00019452,2]
[388529938,1759234270800,-500.0,0.00019452,2]
[388529939,1759234270810,-4001.38,0.00019452,2]
[388529940,1759234270821,-888.48,0.00019452,2]
[388529941,1759234270831,-1763.87,0.00019452,2]
[388529942,1759234270843,-500.0,0.00019452,2]
[388529943,1759234270854,-2635.66,0.00019452,2]
[388529944,1759234270865,-500.0,0.00019452,2]
[388529945,1759234270876,-4104.02,0.00019452,2]
[388529946,1759234270888,-3369.1,0.00019452,2]
[388529947,1759234270899,-500.0,0.00019452,2]
[388529948,1759234270910,-826.05,0.00019452,2]
[388529949,1759234270922,-2870.17,0.00019452,2]
[388529950,1759234270934,-4110.13,0.00019452,2]
[388529951,1759234270944,-500.0,0.00019452,2]
[388529952,1759234270955,-500.0,0.00019452,2]
[388529953,1759234270966,-500.0,0.00019452,2]
[388529954,1759234270977,-862.15,0.00019452,2]
[388529955,1759234270988,-3888.52,0.00019452,2]
[388529956,1759234270999,-500.0,0.00019452,2]
[388529957,1759234271010,-500.0,0.00019452,2]
[388529958,1759234271021,-3710.01,0.00019452,2]
[388529959,1759234271031,-2928.53,0.00019452,2]
[388529960,1759234271042,-500.0,0.00019452,2]
[388529961,1759234271052,-1022.19,0.00019452,2]
[388529962,1759234271064,-500.0,0.00019452,2]
[388529963,1759234271075,-3268.72,0.00019452,2]
[388529964,1759234271085,-987.3,0.00019452,2]
[388529965,1759234271096,-500.0,0.00019452,2]
[388529966,1759234271107,-500.0,0.00019452,2]
[388529967,1759234271118,-500.0,0.00019452,2]
[388529968,1759234271128,-500.0,0.00019452,2]
[388529969,1759234271139,-555.37,0.00019452,2]
[388529970,1759234271150,-500.0,0.00019452,2]
[388529971,1759234271161,-2449.49,0.00019452,2]
[388529972,1759234271171,-500.0,0.00019452,2]
[388529973,1759234271181,-500.0,0.00019452,2]
[388529974,1759234271192,-2061.51,0.00019452,2]
[388529975,1759234271203,-500.0,0.00019452,2]
[388529976,1759234271215,-3282.9,0.00019452,2]
[388529977,1759234271226,-1877.95,0.00019452,2]
[388529978,1759234271236,-500.0,0.00019452,2]
[388529979,1759234271246,-500.0,0.00019452,2]
[388529980,1759234271257,-500.0,0.00019452,2]
[388529981,1759234271267,-500.0,0.00019452,2]
[388529982,1759234271277,-500.0,0.00019452,2]
[388529983,1759234271287,-413.350632,0.00019452,2]
[388529984,1759234271301,-2382.73,0.00019452,2]
[388529985,1759234271312,-413.350632,0.00019452,2]
[388529986,1759234271323,-500.0,0.00019452,2]
[388529987,1759234271334,-500.0,0.00019452,2]
[388529988,1759234271345,-872.73,0.00019452,2]
[388529989,1759234271356,-413.350632,0.00019452,2]
[388529990,1759234271369,-151.0,0.00019452,2]
[388529991,1759234271380,-151.0,0.00019452,2]
[388529992,1759234271391,-500.0,0.00019452,2]
[388529993,1759234271402,-4448.01,0.00019452,2]
[388529994,1759234271413,-413.350637,0.00019452,2]
[388529995,1759234271423,-500.0,0.00019452,2]
[388529996,1759234271434,-500.0,0.00019452,2]
[388529997,1759234271445,-555.32,0.00019452,2]
[388529998,1759234271455,-3972.04,0.00019452,2]
[388529999,1759234271465,-1240.86,0.00019452,2]
[388530000,1759234271476,-4856.21,0.00019452,2]
[388530001,1759234271486,-2865.96,0.00019452,2]
[388530002,1759234271497,-500.0,0.00019452,2]
[388530003,1759234271507,-2162.68,0.00019452,2]
[388530004,1759234271517,-1578.74,0.00019452,2]
[388530005,1759234271528,-4310.37,0.00019452,2]
[388530006,1759234271537,-500.0,0.00019452,2]
[388530007,1759234271547,-500.0,0.00019452,2]
[388530008,1759234271557,-1760.29,0.00019452,2]
[388530009,1759234271568,-672.63,0.00019452,2]
[388530010,1759234271578,-947.4,0.00019452,2]
[388530011,1759234271588,-5124.73,0.00019452,2]
[388530012,1759234271599,-500.0,0.00019452,2]
[388530013,1759234271610,-3031.79,0.00019452,2]
[388530014,1759234271619,-1344.31,0.00019452,2]
[388530015,1759234271629,-3155.65,0.00019452,2]
[388530016,1759234271640,-4224.49,0.00019452,2]
[388530017,1759234271650,-2038.12,0.00019452,2]
[388530018,1759234271660,-1031.84,0.00019452,2]
[388530019,1759234271670,-500.0,0.00019452,2]
[388530020,1759234271680,-500.0,0.00019452,2]
[388530021,1759234271689,-500.0,0.00019452,2]
[388530022,1759234271699,-3012.49,0.00019452,2]
[388530023,1759234271709,-500.0,0.00019452,2]
[388530024,1759234271719,-2346.77,0.00019452,2]
[388530025,1759234271730,-2319.36,0.00019452,2]
[388530026,1759234271739,-1560.95,0.00019452,2]
[388530027,1759234271749,-5111.09,0.00019452,2]
[388530028,1759234271760,-4156.17,0.00019452,2]
[388530029,1759234271771,-2254.99,0.00019452,2]
[388530030,1759234271782,-500.0,0.00019452,2]
[388530031,1759234271793,-500.0,0.00019452,2]
[388530032,1759234271804,-500.0,0.00019452,2]
[388530033,1759234271814,-531.81,0.00019452,2]
[388530034,1759234271824,-1042.72,0.00019452,2]
[388530035,1759234271835,-1933.92,0.00019452,2]
[388530036,1759234271845,-2709.22,0.00019452,2]
[388530037,1759234271856,-500.0,0.00019452,2]
[388530038,1759234271866,-237.58863196,0.00019452,2]
[388530039,1759234271875,-4594.02,0.00019452,2]
[388530040,1759234271886,-854.32,0.00019452,2]
[388530041,1759234271896,-500.0,0.00019452,2]
[388530042,1759234271907,-500.0,0.00019452,2]
[388530043,1759234271918,-500.0,0.00019452,2]
[388530044,1759234271929,-1695.82,0.00019452,2]
[388530045,1759234271939,-2822.43,0.00019452,2]
[388530046,1759234271950,-1830.48,0.00019452,2]
[388530047,1759234271961,-1135.11,0.00019452,2]
[388530048,1759234271972,-1880.31,0.00019452,2]
[388530049,1759234271982,-2373.43,0.00019452,2]
[388530050,1759234271991,-3322.2,0.00019452,2]
[388530051,1759234272001,-500.0,0.00019452,2]
[388530052,1759234272011,-2937.67,0.00019452,2]
[388530053,1759234272021,-742.41,0.00019452,2]
[388530054,1759234272031,-1639.11,0.00019452,2]
[388530055,1759234272046,-500.0,0.00019452,2]
[388530056,1759234272056,-1710.27,0.00019452,2]
[388530057,1759234272067,-3065.55,0.00019452,2]
[388530058,1759234272078,-580.59,0.00019452,2]
[388530059,1759234272088,-698.71,0.00019452,2]
[388530060,1759234272098,-517.07,0.00019452,2]
[388530061,1759234272108,-864.98,0.00019452,2]
[388530062,1759234272117,-574.58,0.00019452,2]
[388530063,1759234272127,-2992.81,0.00019452,2]
[388530064,1759234272137,-500.0,0.00019452,2]
[388530065,1759234272147,-2589.57,0.00019452,2]
[388530066,1759234272157,-3870.93,0.00019452,2]
[388530067,1759234272167,-3037.1,0.00019452,2]
[388530068,1759234272176,-500.0,0.00019452,2]
[388530069,1759234272186,-500.0,0.00019452,2]
[388530070,1759234272195,-665.36,0.00019452,2]
[388530071,1759234272205,-1200.66,0.00019452,2]
[388530072,1759234272215,-3458.43,0.00019452,2]
[388530073,1759234272224,-1574.4,0.00019452,2]
[388530074,1759234272234,-500.0,0.00019452,2]
[388530075,1759234272243,-500.0,0.00019452,2]
[388530076,1759234272252,-1790.76,0.00019452,2]
[388530077,1759234272262,-1506.46,0.00019452,2]
[388530078,1759234272271,-500.0,0.00019452,2]
[388530079,1759234272280,-956.52,0.00019452,2]
[388530080,1759234272290,-1195.86,0.00019452,2]
[388530081,1759234272303,-500.0,0.00019452,2]
[388530082,1759234272313,-887.98,0.00019452,2]
[388530083,1759234272322,-902.33,0.00019452,2]
[388530084,1759234272331,-1508.99,0.00019452,2]
[388530085,1759234272340,-500.0,0.00019452,2]
[388530086,1759234272350,-500.0,0.00019452,2]
[388530087,1759234272360,-3551.95,0.00019452,2]
[388530088,1759234272372,-500.0,0.00019452,2]
[388530089,1759234272383,-500.0,0.00019452,2]
[388530090,1759234272392,-529.81573756,0.00019452,2]
[388530091,1759234272402,-151.0,0.00019452,2]
[388530092,1759234272412,-690.59,0.00019452,2]
[388530093,1759234272422,-500.0,0.00019452,2]
[388530094,1759234272433,-500.0,0.00019452,2]
[388530095,1759234272443,-634.15,0.00019452,2]
[388530096,1759234272453,-151.407768,0.00019452,2]
[388530097,1759234272463,-812.11,0.00019452,2]
[388530098,1759234272474,-837.4,0.00019452,2]
[388530099,1759234272484,-500.0,0.00019452,2]
[388530100,1759234272493,-500.0,0.00019452,2]
[388530101,1759234272503,-1775.8,0.00019452,2]
[388530102,1759234272513,-500.0,0.00019452,2]
[388530103,1759234272523,-885.7,0.00019452,2]
[388530104,1759234272533,-559.91,0.00019452,2]
[388530105,1759234272544,-500.0,0.00019452,2]
[388530106,1759234272554,-1395.91,0.00019452,2]
[388530107,1759234272564,-913.58,0.00019452,2]
[388530108,1759234272574,-500.0,0.00019452,2]
[388530109,1759234273006,-724.49,0.00019452,2]
[388530110,1759234273022,-500.0,0.00019452,2]
[388530111,1759234273032,-500.0,0.00019452,2]
[388530112,1759234273041,-500.0,0.00019452,2]
[388530113,1759234273051,-1876.51,0.00019452,2]
[388530114,1759234273060,-3378.21,0.00019452,2]
[388530115,1759234273070,-4516.26,0.00019452,2]
[388530116,1759234273080,-500.0,0.00019452,2]
[388530117,1759234273090,-1021.95,0.00019452,2]
[388530118,1759234273105,-151.39,0.00019452,2]
[388530119,1759234273114,-500.0,0.00019452,2]
[388530120,1759234273124,-1517.54,0.00019452,2]
[388530121,1759234273134,-151.0,0.00019452,2]
[388530122,1759234273144,-500.0,0.00019452,2]
[388530123,1759234273154,-621.47,0.00019452,2]
[388530124,1759234273163,-500.0,0.00019452,2]
[388530125,1759234273172,-2831.48,0.00019452,2]
[388530126,1759234273182,-500.0,0.00019452,2]
[388530127,1759234273191,-500.0,0.00019452,2]
[388530128,1759234273201,-500.0,0.00019452,2]
[388530129,1759234273211,-500.0,0.00019452,2]
[388530130,1759234273221,-801.11,0.00019452,2]
[388530131,1759234273231,-980.61,0.00019452,2]
[388530132,1759234273241,-151.0,0.00019452,2]